fUSD/lending_fUSD_20240627
["ID","MTS","AMOUNT","RATE_DAILY","PERIOD"]
[330473279,1719470278734,-2352.31,0.00044109,120]
[330473280,1719470278775,-1674.09,0.00044109,120]
[330473281,1719470278816,-288.25220655,0.00044109,120]
[330473282,1719470278857,-500.0,0.00044109,120]
[330473283,1719470278904,-1800.27,0.00044109,120]
[330473284,1719470278946,-969.88,0.00044109,120]
[330473285,1719470278984,-552.45043239,0.00044109,120]
[330473286,1719470279023,-535.37,0.00044109,120]
[330473287,1719470279063,-500.0,0.00044109,120]
[330473288,1719470279104,-1279.29,0.00044109,120]
[330473289,1719470279145,-452.04563399,0.00044109,120]
[330473290,1719470279188,-500.0,0.00044109,120]
[330473291,1719470279229,-3573.4,0.00044109,120]
[330473292,1719470279267,-641.46,0.00044109,120]
[330473293,1719470279310,-945.8,0.00044109,120]
[330473294,1719470279350,-500.0,0.00044109,120]
[330473295,1719470279391,-983.26,0.00044109,120]
[330473296,1719470279430,-1754.81,0.00044109,120]
[330473297,1719470279470,-500.0,0.00044109,120]
[330473298,1719470279511,-2986.97,0.00044109,120]
[330473299,1719470279554,-3274.76,0.00044109,120]
[330473300,1719470279595,-500.0,0.00044109,120]
[330473301,1719470279635,-500.0,0.00044109,120]
[330473302,1719470279673,-994.21,0.00044109,120]
[330473303,1719470279712,-743.41,0.00044109,120]
[330473304,1719470279750,-500.0,0.00044109,120]
[330473305,1719470279788,-2185.92,0.00044109,120]
[330473306,1719470279828,-1621.72,0.00044109,120]
[330473307,1719470279870,-2582.6,0.00044109,120]
[330473308,1719470279911,-555.35,0.00044109,120]
[330473309,1719470279950,-500.0,0.00044109,120]
[330473310,1719470279990,-500.0,0.00044109,120]
[330473311,1719470280031,-2844.83,0.00044109,120]
[330473312,1719470280073,-3424.05,0.00044109,120]
[330473313,1719470280115,-2318.59,0.00044109,120]
[330473314,1719470280158,-3092.03,0.00044109,120]
[330473315,1719470280203,-706.56,0.00044109,120]
[330473316,1719470280245,-14365.69,0.00044109,120]
[330473317,1719470280288,-500.0,0.00044109,120]
[330473318,1719470280329,-2292.12,0.00044109,120]
[330473319,1719470280371,-511.38,0.00044109,120]
[330473320,1719470280414,-1320.06,0.00044109,120]
[330473321,1719470280454,-155.34855835,0.00044109,120]
[330473322,1719470280495,-556.1,0.00044109,120]
[330473323,1719470280535,-1789.95,0.00044109,120]
[330473324,1719470280574,-1307.13,0.00044109,120]
[330473325,1719470280613,-2924.41,0.00044109,120]
[330473326,1719470280654,-677.72,0.00044109,120]
[330473327,1719470280694,-628.87258775,0.00044109,120]
[330473328,1719470280733,-500.0,0.00044109,120]
[330473329,1719470280775,-1139.96,0.00044109,120]
[330473330,1719470280816,-1441.99,0.00044109,120]
[330473331,1719470280858,-2037.17,0.00044109,120]
[330473332,1719470280905,-910.08,0.00044109,120]
[330473333,1719470280947,-1069.35,0.00044109,120]
[330473334,1719470280991,-500.0,0.00044109,120]
[330473335,1719470281030,-501.25,0.00044109,120]
[330473336,1719470281070,-500.0,0.00044109,120]
[330473337,1719470281109,-500.0,0.00044109,120]
[330473338,1719470281150,-500.0,0.00044109,120]
[330473339,1719470281191,-622.94,0.00044109,120]
[330473340,1719470281232,-509.20925045,0.00044109,120]
[330473341,1719470281275,-501.51236429,0.00044109,120]
[330473342,1719470281317,-500.0,0.00044109,120]
[330473343,1719470281358,-500.0,0.00044109,120]
[330473344,1719470281398,-500.0,0.00044109,120]
[330473345,1719470281438,-500.0,0.00044109,120]
[330473346,1719470281478,-500.0,0.00044109,120]
[330473347,1719470281527,-1597.79,0.00044109,120]
[330473348,1719470281570,-994.61,0.00044109,120]
[330473349,1719470281609,-1242.56,0.00044109,120]
[330473350,1719470281649,-501.30215551,0.00044109,120]
[330473351,1719470281692,-748.37,0.00044109,120]
[330473352,1719470281732,-500.0,0.00044109,120]
[330473353,1719470281771,-500.0,0.00044109,120]
[330473354,1719470281809,-1893.5,0.00044109,120]
[330473355,1719470281848,-500.0,0.00044109,120]
[330473356,1719470281890,-500.0,0.00044109,120]
[330473357,1719470281930,-2207.37,0.00044109,120]
[330473358,1719470281971,-500.0,0.00044109,120]
[330473359,1719470282010,-500.0,0.00044109,120]
[330473360,1719470282049,-591.75,0.00044109,120]
[330473361,1719470282089,-500.0,0.00044109,120]
[330473362,1719470282130,-500.0,0.00044109,120]
[330473363,1719470282170,-2382.32,0.00044109,120]
[330473364,1719470282210,-2262.08,0.00044109,120]
[330473365,1719470282251,-500.0,0.00044109,120]
[330473366,1719470282294,-500.0,0.00044109,120]
[330473367,1719470282333,-500.0,0.00044109,120]
[330473368,1719470282370,-500.0,0.00044109,120]
[330473369,1719470282411,-4422.21,0.00044109,120]
[330473370,1719470282449,-1273.36,0.00044109,120]
[330473371,1719470282488,-500.0,0.00044109,120]
[330473372,1719470282897,-500.0,0.00044109,120]
[330473373,1719470282942,-500.0,0.00044109,120]
[330473374,1719470282984,-500.0,0.00044109,120]
[330473375,1719470283024,-500.0,0.00044109,120]
[330473376,1719470283065,-500.0,0.00044109,120]
[330473377,1719470283106,-392.42376777,0.00044109,120]
[330473378,1719470283146,-500.0,0.00044109,120]
[330473379,1719470283188,-11245.17,0.00044109,120]
[330473380,1719470283229,-500.0,0.00044109,120]
[330473381,1719470283269,-591.6,0.00044109,120]
[330473382,1719470283312,-1375.97,0.00044109,120]
[330473383,1719470283355,-624.31945256,0.00044109,120]
[330473384,1719470283401,-500.0,0.00044109,120]
[330473385,1719470283456,-500.0,0.00044109,120]
[330473386,1719470283498,-500.0,0.00044109,120]
[330473387,1719470283538,-502.40369255,0.00044109,120]
[330473388,1719470283583,-1791.62,0.00044109,120]
[330473389,1719470283627,-807.06,0.00044109,120]
[330473390,1719470283670,-500.0,0.00044109,120]
[330473391,1719470283713,-642.87,0.00044109,120]
[330473392,1719470283756,-500.0,0.00044109,120]
[330473393,1719470283800,-500.0,0.00044109,120]
[330473394,1719470283842,-500.0,0.00044109,120]
[330473395,1719470283884,-1655.77,0.00044109,120]
[330473396,1719470283926,-1580.28,0.00044109,120]
[330473397,1719470283969,-1337.87,0.00044109,120]
[330473398,1719470284011,-637.26,0.00044109,120]
[330473399,1719470284052,-500.0,0.00044109,120]
[330473400,1719470284092,-1715.78,0.00044109,120]
[330473401,1719470284133,-500.0,0.00044109,120]
[330473402,1719470284175,-500.0,0.00044109,120]
[330473403,1719470284216,-500.0,0.00044109,120]
[330473404,1719470284258,-2084.58,0.00044109,120]
[330473405,1719470284301,-500.0,0.00044109,120]
[330473406,1719470284343,-1215.36,0.00044109,120]
[330473407,1719470284384,-500.0,0.00044109,120]
[330473408,1719470284426,-500.0,0.00044109,120]
[330473409,1719470284468,-500.0,0.00044109,120]
[330473410,1719470284510,-500.0,0.00044109,120]
[330473411,1719470284552,-500.0,0.00044109,120]
[330473412,1719470284593,-500.0,0.00044109,120]
[330473413,1719470284636,-502.69,0.00044109,120]
[330473414,1719470284680,-500.0,0.00044109,120]
[330473415,1719470284721,-500.0,0.00044109,120]
[330473416,1719470284763,-568.34,0.00044109,120]
[330473417,1719470284804,-2143.31,0.00044109,120]
[330473418,1719470284846,-1160.97,0.00044109,120]
[330473419,1719470284890,-1356.07,0.00044109,120]
[330473420,1719470284931,-658.19,0.00044109,120]
[330473421,1719470284973,-2109.8,0.00044109,120]
[330473422,1719470285016,-2612.21,0.00044109,120]
[330473423,1719470285058,-725.24,0.00044109,120]
[330473424,1719470285101,-500.0,0.00044109,120]
[330473425,1719470285146,-2175.11,0.00044109,120]
[330473426,1719470285186,-500.0,0.00044109,120]
[330473427,1719470285227,-1308.09,0.00044109,120]
[330473428,1719470285269,-510.81,0.00044109,120]
[330473429,1719470285312,-502.95986297,0.00044109,120]
[330473430,1719470285352,-500.0,0.00044109,120]
[330473431,1719470285393,-500.0,0.00044109,120]
[330473432,1719470285433,-1200.43,0.00044109,120]
[330473433,1719470285475,-850.97,0.00044109,120]
[330473434,1719470285517,-500.0,0.00044109,120]
[330473435,1719470285559,-3412.54,0.00044109,120]
[330473436,1719470285603,-500.0,0.00044109,120]
[330473437,1719470285645,-1430.09,0.00044109,120]
[330473438,1719470285686,-718.58,0.00044109,120]
[330473439,1719470285727,-3380.11,0.00044109,120]
[330473440,1719470285766,-500.0,0.00044109,120]
[330473441,1719470285806,-846.23,0.00044109,120]
[330473442,1719470285849,-670.72,0.00044109,120]
[330473443,1719470285890,-1601.12,0.00044109,120]
[330473444,1719470285928,-500.0,0.00044109,120]
[330473445,1719470285969,-500.0,0.00044109,120]
[330473446,1719470286007,-500.0,0.00044109,120]
[330473447,1719470286048,-661.61,0.00044109,120]
[330473448,1719470286088,-946.37,0.00044109,120]
[330473449,1719470286127,-556.24732253,0.00044109,120]
[330473450,1719470286170,-500.0,0.00044109,120]
[330473451,1719470286210,-1005.58,0.00044109,120]
[330473452,1719470286252,-1380.31,0.00044109,120]
[330473453,1719470286293,-500.0,0.00044109,120]
[330473454,1719470286332,-500.0,0.00044109,120]
[330473455,1719470286373,-1567.16,0.00044109,120]
[330473456,1719470286414,-500.0,0.00044109,120]
[330473457,1719470286454,-500.0,0.00044109,120]
[330473458,1719470286495,-500.0,0.00044109,120]
[330473459,1719470286534,-500.0,0.00044109,120]
[330473460,1719470286572,-500.0,0.00044109,120]
[330473461,1719470286612,-1370.88,0.00044109,120]
[330473462,1719470286652,-500.0,0.00044109,120]
[330473463,1719470286691,-500.0,0.00044109,120]
[330473464,1719470286729,-1212.3,0.00044109,120]
[330473465,1719470286768,-1503.71,0.00044109,120]
[330473466,1719470286807,-500.0,0.00044109,120]
[330473467,1719470286848,-500.0,0.00044109,120]
[330473468,1719470286889,-1216.66,0.00044109,120]
[330473469,1719470286929,-500.0,0.00044109,120]
[330473470,1719470286971,-500.0,0.00044109,120]
[330473471,1719470287012,-1119.79,0.00044109,120]
[330473472,1719470287051,-500.0,0.00044109,120]
[330473473,1719470287092,-500.0,0.00044109,120]
[330473474,1719470287134,-665.35,0.00044109,120]
[330473475,1719470287443,-757.03,0.00044109,120]
[330473476,1719470287503,-500.0,0.00044109,120]
[330473477,1719470287546,-1864.36,0.00044109,120]
[330473478,1719470287588,-500.0,0.00044109,120]
[330473479,1719470287630,-500.0,0.00044109,120]
[330473480,1719470287676,-549.18,0.00044109,120]
[330473481,1719470287719,-1278.0,0.00044109,120]
[330473482,1719470287760,-566.01,0.00044109,120]
[330473483,1719470287800,-500.0,0.00044109,120]
[330473484,1719470287840,-2129.04,0.00044109,120]
[330473485,1719470287883,-3991.74,0.00044109,120]
[330473486,1719470287925,-1506.29,0.00044109,120]
[330473487,1719470287966,-500.0,0.00044109,120]
[330473488,1719470288009,-500.0,0.00044109,120]
[330473489,1719470288050,-500.0,0.00044109,120]
[330473490,1719470288091,-1131.76,0.00044109,120]
[330473491,1719470288132,-500.0,0.00044109,120]
[330473492,1719470288173,-500.0,0.00044109,120]
[330473493,1719470288213,-500.0,0.00044109,120]
[330473494,1719470288254,-2289.93,0.00044109,120]
[330473495,1719470288299,-500.0,0.00044109,120]
[330473496,1719470288340,-21209.28,0.00044109,120]
[330473497,1719470288384,-2194.52,0.00044109,120]
[330473498,1719470288425,-2043.01,0.00044109,120]
[330473499,1719470288465,-896.99,0.00044109,120]
[330473500,1719470288506,-500.0,0.00044109,120]
[330473501,1719470288545,-500.0,0.00044109,120]
[330473502,1719470288585,-2331.46,0.00044109,120]
[330473503,1719470288625,-1533.08,0.00044109,120]
[330473504,1719470288665,-500.0,0.00044109,120]
[330473505,1719470288706,-500.0,0.00044109,120]
[330473506,1719470288746,-500.0,0.00044109,120]
[330473507,1719470288788,-1927.68,0.00044109,120]
[330473508,1719470288828,-500.0,0.00044109,120]
[330473509,1719470288871,-500.0,0.00044109,120]
[330473510,1719470288913,-27172.75,0.00044109,120]
[330473511,1719470288953,-26040.55,0.00044109,120]
[330473512,1719470288999,-1483.6,0.00044109,120]
[330473513,1719470289046,-500.0,0.00044109,120]
[330473514,1719470289098,-500.0,0.00044109,120]
[330473515,1719470289144,-500.0,0.00044109,120]
[330473516,1719470289185,-500.0,0.00044109,120]
[330473517,1719470289226,-501.83,0.00044109,120]
[330473518,1719470289269,-500.0,0.00044109,120]
[330473519,1719470289310,-500.0,0.00044109,120]
[330473520,1719470289350,-500.0,0.00044109,120]
[330473521,1719470289392,-629.18,0.00044109,120]
[330473522,1719470289432,-500.0,0.00044109,120]
[330473523,1719470289470,-500.0,0.00044109,120]
[330473524,1719470289512,-500.0,0.00044109,120]
[330473525,1719470289552,-500.0,0.00044109,120]
[330473526,1719470289592,-1934.79,0.00044109,120]
[330473527,1719470289634,-500.0,0.00044109,120]
[330473528,1719470289675,-500.0,0.00044109,120]
[330473529,1719470289715,-500.0,0.00044109,120]
[330473530,1719470289754,-500.0,0.00044109,120]
[330473531,1719470289794,-500.0,0.00044109,120]
[330473532,1719470289835,-795.48,0.00044109,120]
[330473533,1719470289878,-535.32418494,0.00044109,120]
[330473534,1719470289920,-1061.44,0.00044109,120]
[330473535,1719470289961,-500.0,0.00044109,120]
[330473536,1719470290002,-500.0,0.00044109,120]
[330473537,1719470290041,-500.0,0.00044109,120]
[330473538,1719470290081,-586.27,0.00044109,120]
[330473539,1719470290121,-500.0,0.00044109,120]
[330473540,1719470290161,-500.0,0.00044109,120]
[330473541,1719470290203,-1981.65,0.00044109,120]
[330473542,1719470290245,-671.6,0.00044109,120]
[330473543,1719470290290,-500.0,0.00044109,120]
[330473544,1719470290336,-1323.97,0.00044109,120]
[330473545,1719470290376,-500.0,0.00044109,120]
[330473546,1719470290417,-935.94,0.00044109,120]
[330473547,1719470290457,-3326.75,0.00044109,120]
[330473548,1719470290498,-500.0,0.00044109,120]
[330473549,1719470290537,-500.0,0.00044109,120]
[330473550,1719470290578,-687.5,0.00044109,120]
[330473551,1719470290618,-500.0,0.00044109,120]
[330473552,1719470290658,-1100.85,0.00044109,120]
[330473553,1719470290697,-500.0,0.00044109,120]
[330473554,1719470290736,-500.0,0.00044109,120]
[330473555,1719470290775,-500.0,0.00044109,120]
[330473556,1719470290813,-2084.82,0.00044109,120]
[330473557,1719470290852,-624.98,0.00044109,120]
[330473558,1719470290891,-516.64,0.00044109,120]
[330473559,1719470290930,-500.0,0.00044109,120]
[330473560,1719470290971,-500.0,0.00044109,120]
[330473561,1719470291007,-784.71,0.00044109,120]
[330473562,1719470291043,-338.67309406,0.00044109,120]
[330473563,1719470291082,-500.0,0.00044109,120]
[330473564,1719470291120,-564.87,0.00044109,120]
[330473565,1719470291162,-1550.93,0.00044109,120]
[330473566,1719470291201,-500.0,0.00044109,120]
[330473567,1719470291240,-500.0,0.00044109,120]
[330473568,1719470291278,-500.0,0.00044109,120]
[330473569,1719470291316,-561.61,0.00044109,120]
[330473570,1719470291354,-500.0,0.00044109,120]
[330473571,1719470291392,-500.0,0.00044109,120]
[330473572,1719470291430,-500.0,0.00044109,120]
[330473573,1719470291466,-500.0,0.00044109,120]
[330473574,1719470291501,-2877.3,0.00044109,120]
[330473575,1719470291537,-544.7,0.00044109,120]
[330473576,1719470291572,-1894.58,0.00044109,120]
[330473577,1719470291608,-542.11,0.00044109,120]
[330473578,1719470291645,-500.0,0.00044109,120]
[330473579,1719470291682,-500.0,0.00044109,120]
[330473580,1719470292025,-1745.12,0.00044109,120]
[330473581,1719470292060,-500.0,0.00044109,120]
[330473582,1719470292095,-500.0,0.00044109,120]
[330473583,1719470292135,-3603.95,0.00044109,120]
[330473584,1719470292172,-500.0,0.00044109,120]
[330473585,1719470292209,-500.0,0.00044109,120]
[330473586,1719470292248,-1797.8,0.00044109,120]
[330473587,1719470292286,-500.0,0.00044109,120]
[330473588,1719470292321,-829.66,0.00044109,120]
[330473589,1719470292357,-500.0,0.00044109,120]
[330473590,1719470292393,-782.33,0.00044109,120]
[330473591,1719470292433,-500.0,0.00044109,120]
[330473592,1719470292472,-1396.29,0.00044109,120]
[330473593,1719470292508,-1594.23,0.00044109,120]
[330473594,1719470292547,-500.0,0.00044109,120]
[330473595,1719470292584,-784.1,0.00044109,120]
[330473596,1719470292623,-995.1,0.00044109,120]
[330473597,1719470292664,-754.87,0.00044109,120]
[330473598,1719470292703,-10701.92,0.00044109,120]
[330473599,1719470292742,-1850.64,0.00044109,120]
[330473600,1719470292782,-500.0,0.00044109,120]
[330473601,1719470292822,-500.0,0.00044109,120]
[330473602,1719470292859,-635.87778859,0.00044109,120]
[330473603,1719470292902,-500.0,0.00044109,120]
[330473604,1719470292947,-500.0,0.00044109,120]
[330473605,1719470292990,-2329.23,0.00044109,120]
[330473606,1719470293030,-500.57,0.00044109,120]
[330473607,1719470293070,-500.0,0.00044109,120]
[330473608,1719470293109,-500.0,0.00044109,120]
[330473609,1719470293148,-1164.45,0.00044109,120]
[330473610,1719470293186,-1600.16,0.00044109,120]
[330473611,1719470293225,-5000.0,0.00044109,120]
[330473612,1719470293265,-1538.4,0.00044109,120]
[330473613,1719470293308,-2200.25,0.00044109,120]
[330473614,1719470293350,-500.0,0.00044109,120]
[330473615,1719470293390,-500.0,0.00044109,120]
[330473616,1719470293429,-500.0,0.00044109,120]
[330473617,1719470293470,-500.0,0.00044109,120]
[330473618,1719470293509,-500.0,0.00044109,120]
[330473619,1719470293549,-496.20152853,0.00044109,120]
[330473620,1719470293589,-500.0,0.00044109,120]
[330473621,1719470293629,-500.0,0.00044109,120]
[330473622,1719470293673,-500.0,0.00044109,120]
[330473623,1719470293714,-561.17,0.00044109,120]
[330473624,1719470293756,-1509.02,0.00044109,120]
[330473625,1719470293796,-500.0,0.00044109,120]
[330473626,1719470293837,-2361.82,0.00044109,120]
[330473627,1719470293878,-335.79780681,0.00044109,120]
[330473628,1719470293919,-500.0,0.00044109,120]
[330473629,1719470293962,-1563.42,0.00044109,120]
[330473630,1719470294003,-5341.46,0.00044109,120]
[330473631,1719470294044,-500.0,0.00044109,120]
[330473632,1719470294083,-1472.77,0.00044109,120]
[330473633,1719470294126,-2358.93,0.00044109,120]
[330473634,1719470294169,-500.0,0.00044109,120]
[330473635,1719470294211,-1273.2,0.00044109,120]
[330473636,1719470294255,-856.57,0.00044109,120]
[330473637,1719470294296,-500.0,0.00044109,120]
[330473638,1719470294335,-3659.25,0.00044109,120]
[330473639,1719470294376,-754.02,0.00044109,120]
[330473640,1719470294420,-532.67,0.00044109,120]
[330473641,1719470294459,-782.31,0.00044109,120]
[330473642,1719470294500,-3330.5,0.00044109,120]
[330473643,1719470294540,-500.0,0.00044109,120]
[330473644,1719470294579,-500.0,0.00044109,120]
[330473645,1719470294619,-500.0,0.00044109,120]
[330473646,1719470294658,-4687.31,0.00044109,120]
[330473647,1719470294697,-687.18,0.00044109,120]
[330473648,1719470294735,-500.0,0.00044109,120]
[330473649,1719470294774,-500.0,0.00044109,120]
[330473650,1719470294812,-1759.38,0.00044109,120]
[330473651,1719470294851,-500.0,0.00044109,120]
[330473652,1719470294891,-780.27,0.00044109,120]
[330473653,1719470294930,-529.25,0.00044109,120]
[330473654,1719470294970,-1044.52,0.00044109,120]
[330473655,1719470295011,-500.0,0.00044109,120]
[330473656,1719470295051,-500.0,0.00044109,120]
[330473657,1719470295090,-500.0,0.00044109,120]
[330473658,1719470295129,-500.0,0.00044109,120]
[330473659,1719470295172,-1151.75,0.00044109,120]
[330473660,1719470295212,-156.48512236,0.00044109,120]
[330473661,1719470295252,-520.35,0.00044109,120]
[330473662,1719470295291,-2501.01,0.00044109,120]
[330473663,1719470295329,-986.4,0.00044109,120]
[330473664,1719470295369,-2302.97,0.00044109,120]
[330473665,1719470295408,-1734.23,0.00044109,120]
[330473666,1719470295448,-500.0,0.00044109,90]
[330473667,1719470295486,-500.26,0.00044109,120]
[330473668,1719470295525,-1046.1,0.00044109,120]
[330473669,1719470295565,-1541.75,0.00044109,120]
[330473670,1719470295605,-3276.32,0.00044109,120]
[330473671,1719470295645,-3067.76,0.00044109,120]
[330473672,1719470295684,-1871.0,0.00044109,120]
[330473673,1719470295724,-10881.26,0.00044109,120]
[330473674,1719470295763,-500.0,0.00044109,120]
[330473675,1719470295802,-500.0,0.00044109,120]
[330473676,1719470295839,-1285.54,0.00044109,120]
[330473677,1719470295879,-576.51,0.00044109,120]
[330473678,1719470295920,-500.0,0.00044109,120]
[330473679,1719470295958,-500.0,0.00044109,120]
[330473680,1719470295999,-1096.1,0.00044109,120]
[330473681,1719470296038,-1002.42,0.00044109,120]
[330473682,1719470296077,-500.0,0.00044109,120]
[330473683,1719470296117,-500.0,0.00044109,120]
[330473684,1719470296388,-500.0,0.00044109,120]
[330473685,1719470296428,-1003.17,0.00044109,120]
[330473686,1719470296466,-1304.5,0.00044109,120]
[330473687,1719470296506,-500.0,0.00044109,120]
[330473688,1719470296546,-879.02,0.00044109,120]
[330473689,1719470296585,-721.95,0.00044109,120]
[330473690,1719470296622,-500.0,0.00044109,120]
[330473691,1719470296663,-574.06,0.00044109,120]
[330473692,1719470296702,-500.0,0.00044109,120]
[330473693,1719470296741,-500.0,0.00044109,120]
[330473694,1719470296782,-2226.61,0.00044109,120]
[330473695,1719470296822,-2501.35,0.00044109,120]
[330473696,1719470296861,-951.42,0.00044109,120]
[330473697,1719470296906,-834.19,0.00044109,120]
[330473698,1719470296947,-500.0,0.00044109,120]
[330473699,1719470296988,-2674.19,0.00044109,120]
[330473700,1719470297026,-1176.38,0.00044109,120]
[330473701,1719470297064,-1666.64,0.00044109,120]
[330473702,1719470297102,-607.02,0.00044109,120]
[330473703,1719470297143,-500.0,0.00044109,120]
[330473704,1719470297185,-500.0,0.00044109,120]
[330473705,1719470297227,-500.0,0.00044109,120]
[330473706,1719470297268,-2615.24,0.00044109,120]
[330473707,1719470297310,-500.0,0.00044109,120]
[330473708,1719470297350,-2501.31,0.00044109,120]
[330473709,1719470297394,-534.51279823,0.00044109,120]
[330473710,1719470297434,-880.1,0.00044109,120]
[330473711,1719470297474,-500.0,0.00044109,120]
[330473712,1719470297514,-500.0,0.00044109,120]
[330473713,1719470297555,-15491.16,0.00044109,120]
[330473714,1719470297597,-1566.08,0.00044109,120]
[330473715,1719470297640,-1063.16,0.00044109,120]
[330473716,1719470297680,-1067.78,0.00044109,120]
[330473717,1719470297719,-500.0,0.00044109,120]
[330473718,1719470297758,-1538.18,0.00044109,120]
[330473719,1719470297799,-548.81,0.00044109,120]
[330473720,1719470297841,-1216.11,0.00044109,120]
[330473721,1719470297888,-500.0,0.00044109,120]
[330473722,1719470297927,-500.0,0.00044109,120]
[330473723,1719470297966,-500.0,0.00044109,120]
[330473724,1719470298004,-500.0,0.00044109,120]
[330473725,1719470298044,-1643.89,0.00044109,120]
[330473726,1719470298082,-500.0,0.00044109,120]
[330473727,1719470298121,-1000.0,0.00044109,120]
[330473728,1719470298163,-500.0,0.00044109,120]
[330473729,1719470298201,-500.0,0.00044109,120]
[330473730,1719470298240,-2222.84,0.00044109,120]
[330473731,1719470298278,-500.0,0.00044109,120]
[330473732,1719470298317,-727.31,0.00044109,120]
[330473733,1719470298355,-2049.55,0.00044109,120]
[330473734,1719470298396,-2335.18,0.00044109,120]
[330473735,1719470298435,-792.45,0.00044109,120]
[330473736,1719470298474,-500.0,0.00044109,120]
[330473737,1719470298513,-747.69,0.00044109,120]
[330473738,1719470298553,-1455.92,0.00044109,120]
[330473739,1719470298593,-997.67,0.00044109,120]
[330473740,1719470298632,-565.2,0.00044109,120]
[330473741,1719470298675,-500.0,0.00044109,120]
[330473742,1719470298715,-500.0,0.00044109,120]
[330473743,1719470298754,-1048.58,0.00044109,120]
[330473744,1719470298793,-581.97,0.00044109,120]
[330473745,1719470298832,-1214.18,0.00044109,120]
[330473746,1719470298875,-1746.85,0.00044109,120]
[330473747,1719470298915,-543.02,0.00044109,120]
[330473748,1719470298956,-12418.5,0.00044109,120]
[330473749,1719470298994,-554.16,0.00044109,120]
[330473750,1719470299032,-500.0,0.00044109,120]
[330473751,1719470299076,-523.46859921,0.00044109,120]
[330473752,1719470299118,-1895.65,0.00044109,120]
[330473753,1719470299161,-500.0,0.00044109,120]
[330473754,1719470299201,-500.0,0.00044109,120]
[330473755,1719470299242,-8000.0,0.00044109,120]
[330473756,1719470299283,-500.0,0.00044109,120]
[330473757,1719470299324,-1000.0,0.0004414,30]
[330473758,1719470299364,-40077.72548354,0.0004418,120]
[330473759,1719470641300,-668.10820583,0.00025,30]
[330473760,1719470641408,-157.27,0.000335,31]
[330473761,1719470641454,-157.27,0.000362,31]
[330473762,1719470641499,-150.0,0.00037552,120]
[330473763,1719470641545,-157.27,0.00039,31]
[330473764,1719470641590,-2273.0,0.000407,81]
[330473765,1719470641633,-152.0,0.00041041,31]
[330473766,1719470641946,-17722.58555002,0.0004117,60]
[330473767,1719470641991,-900.0,0.00041182,30]
[330473768,1719470642035,-500.0,0.00041182,30]
[330473769,1719470642078,-500.0,0.00041529,30]
[330473770,1719470642118,-500.0,0.00041529,30]
[330473771,1719470642158,-500.0,0.00041529,30]
[330473772,1719470642198,-500.0,0.00041529,30]
[330473773,1719470642239,-500.0,0.00041529,30]
[330473774,1719470642280,-500.0,0.00041529,30]
[330473775,1719470642320,-500.0,0.00041529,30]
[330473776,1719470642360,-500.0,0.00041529,30]
[330473777,1719470642407,-500.0,0.00041529,30]
[330473778,1719470642449,-500.0,0.00041529,30]